bitfinex/quotes_ETHUSD_20250702
["timestamp","ask_amount","ask_price","bid_price","bid_amount"]
[1751461348602,0.9784632,2444.0,2443.7,5.30862603]
[1751461348903,0.9784632,2443.9,2443.8,1.02171295]
[1751461349101,0.9784632,2444.0,2443.8,1.02171295]
[1751461349316,0.9784632,2443.9,2443.8,1.02171295]
[1751461349515,0.01,2444.1,2443.8,1.02171295]
[1751461349818,0.01,2444.1,2443.7,5.30866477]
[1751461349985,0.01,2444.1,2443.7,1.21654005]
[1751461350916,0.01,2444.1,2443.8,4.09197634]
[1751461351105,0.01,2444.1,2443.9,0.8112]
[1751461351304,0.01,2444.1,2444.0,0.204]
[1751461351504,0.01,2444.1,2444.0,5.21553659]
[1751461351817,0.01,2444.1,2444.0,1.12388357]
[1751461352483,0.01,2444.1,2444.0,5.21553659]
[1751461353509,0.01,2444.1,2444.0,1.12388357]
[1751461353917,0.01,2444.1,2444.0,5.21553659]
[1751461354102,0.01,2444.1,2444.0,1.12388357]
[1751461354797,0.01,2444.1,2444.0,5.21553659]
[1751461355888,0.01,2444.1,2444.0,6.00493659]
[1751461356293,0.01,2444.1,2444.0,28.18003109]
[1751461356490,0.01,2444.1,2444.0,16.00493659]
[1751461358223,0.2193211,2445.0,2444.9,14.88514683]
[1751461358391,0.2193211,2445.0,2444.9,16.98668962]
[1751461359121,0.2193211,2445.0,2444.9,29.16178412]
[1751461359320,3.00795656,2446.2,2445.3,4.89337777]
[1751461359321,1.17795656,2446.2,2445.3,4.89337777]
[1751461359519,0.204,2446.2,2445.3,4.29344516]
[1751461359690,0.204,2446.2,2445.8,0.204]
[1751461360214,0.204,2446.2,2445.8,4.29260441]
[1751461360403,0.204,2446.2,2445.8,0.204]
[1751461361024,0.8289,2446.3,2445.4,7.4501]
[1751461361221,0.204,2446.1,2445.6,0.204]
[1751461362220,0.204,2446.1,2445.7,4.08872971]
[1751461362520,0.204,2446.2,2445.8,0.61287297]
[1751461362728,0.204,2446.2,2445.8,0.204]
[1751461363921,0.204,2446.2,2445.8,4.2925229]
[1751461364122,0.204,2446.5,2446.0,0.204]
[1751461364927,0.204,2446.5,2446.0,4.29225717]
[1751461365429,6.669,2447.1,2445.9,0.7832]
[1751461365430,0.8057,2447.3,2446.4,0.204]
[1751461365729,0.8057,2447.2,2446.2,0.8048]
[1751461365915,10.8057,2447.2,2446.2,0.8048]
[1751461366738,0.7597,2447.0,2445.7,2.033]
[1751461366906,0.7597,2447.0,2445.2,12.4865543]
[1751461366907,0.55,2446.9,2445.8,0.7566]
[1751461367112,0.55,2446.7,2445.8,0.7566]
[1751461367341,0.55,2446.8,2445.8,0.7566]
[1751461367497,0.55,2446.5,2445.5,2.033]
[1751461367832,10.8263,2446.6,2445.5,16.12211425]
[1751461368194,10.8263,2446.6,2445.5,10.0]
[1751461368394,10.8263,2446.6,2445.5,12.033]
[1751461368601,10.8263,2446.6,2445.5,16.12211811]
[1751461368900,1.39143,2446.5,2445.5,14.80575702]
[1751461369517,1.39143,2446.5,2445.5,18.89489297]
[1751461369935,1.39143,2446.5,2445.5,14.80575702]
[1751461370134,1.39143,2446.5,2445.6,4.08893165]
[1751461370312,10.8263,2446.6,2445.7,4.08870472]
[1751461370313,1.221773,2446.4,2445.7,4.08870472]
[1751461370511,0.8263,2446.6,2446.0,4.0882842]
[1751461371397,0.8263,2446.6,2445.9,4.08839991]
[1751461371597,0.8263,2446.6,2446.0,4.08829141]
[1751461371793,0.8263,2446.6,2445.9,4.08839166]
[1751461372219,0.8263,2446.6,2446.0,4.08828728]
[1751461372434,1.11223,2446.6,2446.0,4.08828728]
[1751461372930,1.11223,2446.6,2445.9,4.08840501]
[1751461373130,1.11223,2446.6,2445.9,4.0883358]
[1751461373331,0.8263,2446.6,2446.0,4.08826064]
[1751461373634,0.8363,2446.6,2445.8,4.85045818]
[1751461373833,0.8363,2446.6,2446.0,4.0883068]
[1751461374037,0.8363,2446.6,2445.9,4.08837522]
[1751461374236,0.8363,2446.6,2446.0,4.0882997]
[1751461374402,0.8363,2446.6,2445.9,4.08840003]
[1751461374597,0.8363,2446.6,2446.0,4.08829618]
[1751461374804,0.8363,2446.6,2445.9,4.08838313]
[1751461375004,0.8363,2446.6,2446.0,4.08821547]
[1751461375223,0.8363,2446.6,2446.1,4.08800636]
[1751461375781,0.8363,2446.6,2446.2,4.08793623]
[1751461376069,0.01,2446.6,2446.2,4.08787128]
[1751461376211,0.01,2446.6,2446.4,0.204]
[1751461376418,0.01,2446.6,2446.4,4.29148715]
[1751461377249,0.01,2446.6,2446.4,4.2914878]
[1751461377462,0.01,2446.6,2446.4,4.29153851]
[1751461377825,0.01,2446.6,2446.4,4.29152774]
[1751461378022,0.01,2446.6,2446.5,4.08747189]
[1751461378327,0.01,2446.6,2446.5,5.00846234]
[1751461378531,0.01,2446.6,2446.5,5.21246234]
[1751461379546,0.01,2446.6,2446.5,16.02266234]
[1751461380424,0.01,2446.6,2446.5,18.07366234]
[1751461380625,0.01,2446.6,2446.5,18.67366234]
[1751461380851,0.01,2446.6,2446.5,16.62266234]
[1751461381056,0.01,2446.6,2446.5,0.804]
[1751461381261,0.01,2446.6,2446.5,0.204]
[1751461385847,0.01,2446.6,2446.1,10.0]
[1751461386036,0.01,2446.6,2446.4,0.204]
[1751461387324,0.97703672,2446.5,2446.4,0.204]
[1751461392070,0.97703672,2446.5,2446.4,5.04473897]
[1751461392432,0.97703672,2446.5,2446.4,0.9571]
[1751461392931,0.97703672,2446.5,2446.4,5.04473897]
[1751461393368,0.97703672,2446.5,2446.4,15.9579837]
[1751461393534,0.97703672,2446.5,2446.4,5.9579837]
[1751461394062,0.97703672,2446.5,2446.4,15.9579837]
[1751461394234,0.01,2446.6,2446.5,14.08747189]
[1751461394429,0.98899824,2446.6,2446.5,14.39080576]
[1751461394667,0.98899824,2446.6,2446.5,17.03846348]
[1751461396130,0.01,2446.6,2446.5,17.03846348]
[1751461396945,0.98883907,2446.6,2446.5,17.03846348]
[1751461397144,0.98883907,2446.6,2446.5,12.95099159]
[1751461397347,0.01,2446.6,2446.5,17.03846348]
[1751461398861,0.01,2446.6,2446.5,0.204]
[1751461399469,0.01,2446.6,2446.5,4.29147189]
[1751461400872,0.01,2446.6,2446.5,0.204]
[1751461401742,0.01,2446.6,2446.5,4.29147189]
[1751461402439,0.7337,2447.0,2446.5,4.29147189]
[1751461402639,0.97943155,2446.9,2446.6,4.0872784]
[1751461402952,0.01,2447.6,2447.4,0.7791]
[1751461403140,3.25669864,2448.4,2447.5,16.681]
[1751461403344,3.25669864,2448.4,2447.6,10.0]
[1751461403542,3.25669864,2448.5,2447.7,4.08546799]
[1751461403853,3.25669864,2448.5,2447.6,4.08554912]
[1751461404249,3.25669864,2448.6,2447.5,4.08575252]
[1751461404573,3.25669864,2448.6,2447.6,20.87163429]
[1751461404775,0.55,2448.4,2447.6,20.87161945]
[1751461405279,0.55,2448.4,2447.4,6.784]
[1751461405440,10.32566986,2448.5,2447.4,10.0]
[1751461405441,0.7512,2448.2,2447.4,10.0]
[1751461406179,0.7512,2448.2,2447.4,14.08596279]
[1751461406750,0.7512,2448.2,2447.4,10.0]
[1751461406948,0.7512,2448.2,2447.3,10.0]
[1751461407179,0.55,2448.0,2446.9,0.8224]
[1751461407397,0.55,2447.8,2446.7,4.08705074]
[1751461407552,0.55,2447.8,2446.6,18.718]
[1751461407553,0.7566,2447.7,2446.6,18.718]
[1751461407750,0.7566,2447.4,2446.7,4.08704508]
[1751461408664,0.7566,2447.4,2446.6,22.80321784]
[1751461409076,0.7566,2447.4,2446.6,9.821]
[1751461409250,0.7566,2447.4,2446.6,13.90829166]
[1751461409582,0.7566,2447.4,2446.6,9.821]
[1751461409972,0.7566,2447.4,2446.6,13.90827453]
[1751461410287,0.7566,2447.4,2446.6,9.821]
[1751461410481,0.7566,2447.4,2446.5,4.08738273]
[1751461410655,0.7501,2447.2,2446.4,10.0]
[1751461411178,0.7501,2447.0,2446.2,2.11]
[1751461411383,0.7501,2447.0,2446.2,12.11]
[1751461411684,0.7501,2447.0,2446.2,2.11]
[1751461412546,0.7501,2447.0,2446.3,4.08779602]
[1751461413162,0.204,2446.7,2446.3,4.08779602]
[1751461414080,0.8318,2446.6,2446.3,4.08779602]
[1751461414861,0.8318,2446.6,2446.3,4.08768586]
[1751461415067,0.8318,2446.6,2446.4,4.08761326]
[1751461415862,0.8318,2446.6,2446.3,4.08771223]
[1751461416062,0.8318,2446.6,2446.2,2.314]
[1751461416263,0.8318,2446.6,2446.2,0.204]
[1751461417017,0.8318,2446.6,2446.0,10.0]
[1751461417018,0.8318,2446.6,2446.0,4.08825215]
[1751461417174,0.204,2446.5,2446.0,4.29225215]
[1751461417991,0.204,2446.5,2446.0,0.204]
[1751461418296,0.204,2446.5,2446.0,4.29223256]
[1751461418995,0.204,2446.5,2446.0,0.204]
[1751461419594,0.7961,2446.4,2446.0,0.204]
[1751461421002,0.7961,2446.4,2446.0,4.29219455]
[1751461421209,0.7961,2446.4,2446.0,0.204]
[1751461421378,0.7961,2446.4,2446.0,4.29223242]
[1751461422480,0.7961,2446.4,2446.0,0.204]
[1751461422689,0.7961,2446.4,2446.0,4.29222626]
[1751461425071,0.7961,2446.4,2446.1,4.08813168]
[1751461425394,0.7961,2446.4,2446.1,1.83803579]
[1751461425903,0.7961,2446.4,2446.1,5.92610286]
[1751461426296,0.7961,2446.4,2446.1,4.08806707]
[1751461428105,0.7961,2446.4,2446.0,4.29221025]
[1751461428272,0.7961,2446.4,2445.7,9.82]
[1751461431381,0.7961,2446.4,2445.8,4.08855757]
[1751461432295,0.7961,2446.4,2445.7,13.90870649]
[1751461432591,0.7961,2446.4,2445.7,17.8401785]
[1751461433011,0.7961,2446.4,2445.7,13.75147201]
[1751461433213,0.7961,2446.4,2445.7,17.84013108]
[1751461433514,0.7961,2446.4,2445.8,4.08859562]
[1751461433882,0.7961,2446.4,2445.7,17.84017675]
[1751461434208,0.7961,2446.4,2445.8,1.754337]
[1751461434420,0.7961,2446.4,2445.8,5.8429324]
[1751461434586,0.7961,2446.4,2445.9,4.08834192]
[1751461434982,0.7523,2446.6,2445.9,16.754]
[1751461435299,0.7523,2446.6,2446.3,4.08775168]
[1751461435689,0.7523,2446.6,2446.4,4.08761518]
[1751461436088,0.7523,2446.6,2446.4,4.08760622]
[1751461436316,1.73032528,2447.1,2446.5,4.08747189]
[1751461436537,0.7523,2447.1,2446.8,4.08689352]
[1751461436688,0.7523,2447.3,2446.5,14.91851694]
[1751461437022,0.97802528,2447.5,2447.1,4.08645875]
[1751461437220,0.7523,2447.5,2447.2,4.08621428]
[1751461437406,0.7523,2447.5,2447.3,4.08610981]
[1751461437607,0.01,2447.6,2447.4,4.085851]
[1751461437922,0.01,2447.6,2447.3,4.08610981]
[1751461437923,0.01,2447.6,2447.5,4.08580183]
[1751461438219,0.01,2447.6,2447.3,4.29008113]
[1751461438623,0.01,2447.6,2447.4,4.08596327]
[1751461439020,0.01,2447.6,2447.5,4.08580183]
[1751461439193,0.01,2447.6,2447.4,4.08592397]
[1751461439395,0.01,2447.6,2447.5,4.08580183]
[1751461439731,0.01,2447.6,2447.5,4.28980183]
[1751461441013,0.01,2447.6,2447.5,14.28980183]
[1751461442038,0.01,2448.2,2447.7,4.08546799]
[1751461442241,0.01,2448.2,2447.9,4.08503861]
[1751461442390,0.01,2448.2,2447.6,2.8769]
[1751461442391,0.01,2448.2,2447.6,0.7839]
[1751461442703,0.204,2448.1,2447.7,0.204]
[1751461444123,0.01,2448.2,2447.3,10.0]
[1751461444315,0.204,2448.0,2447.5,0.204]
[1751461445500,0.204,2448.0,2447.5,4.28979694]
[1751461445698,0.01,2448.2,2447.5,10.0]
[1751461445899,0.01,2448.2,2447.8,0.204]
[1751461446104,0.01,2448.2,2447.8,4.28927653]
[1751461446338,0.01,2448.2,2447.8,0.204]
[1751461446638,0.01,2448.2,2447.8,4.28921562]
[1751461446802,0.01,2448.2,2447.9,4.08508833]
[1751461447001,0.01,2448.2,2448.0,0.204]
[1751461448716,0.01,2448.2,2448.0,4.28895483]
[1751461449133,0.01,2448.2,2448.1,4.08480045]
[1751461449426,0.01,2448.2,2448.1,5.09600045]
[1751461449621,0.01,2448.2,2448.1,6.0140936]
[1751461450737,0.01,2448.2,2448.1,1.12209315]
[1751461451644,0.01,2448.2,2448.1,5.2068936]
[1751461452417,0.01,2448.2,2448.1,15.2068936]
[1751461452612,0.01,2448.2,2448.1,15.9744936]
[1751461454590,0.01,2448.2,2448.1,11.88969315]
[1751461455136,0.01,2448.2,2448.1,11.12209315]
[1751461455338,0.01,2448.2,2448.1,0.204]
[1751461455537,0.01,2448.2,2448.0,0.204]
[1751461457856,0.01,2448.2,2448.0,4.28883692]
[1751461458366,0.01,2448.2,2448.0,0.204]
[1751461459954,0.01,2448.2,2448.0,0.9719]
[1751461460157,0.01,2448.2,2448.1,4.59049441]
[1751461460471,0.01,2448.2,2448.1,14.59049441]
[1751461463150,0.01,2448.2,2448.1,21.35649441]
[1751461463338,0.01,2448.2,2448.1,14.59049441]
[1751461465964,0.01,2448.2,2448.1,15.19049441]
[1751461466673,0.01,2448.2,2448.1,15.99129441]
[1751461467248,0.97211619,2449.1,2448.7,0.7644]
[1751461467448,0.97211619,2449.1,2448.2,10.0]
[1751461467449,1.0145,2449.3,2448.8,10.84363199]
[1751461467674,1.98661619,2449.3,2449.0,0.204]
[1751461467972,1.0145,2449.3,2449.0,0.204]
[1751461468175,0.8105,2449.3,2449.0,4.2872345]
[1751461468342,0.97211619,2449.4,2448.9,0.7992]
[1751461468675,0.9867,2449.5,2449.2,4.08295449]
[1751461468889,1.62760866,2449.8,2449.5,0.7607]
[1751461469039,0.2193211,2449.9,2449.4,10.8816118]
[1751461469376,0.2193211,2449.9,2449.8,4.08196587]
[1751461469575,0.2193211,2449.9,2449.6,6.807]
[1751461469741,0.2193211,2449.9,2449.5,20.88838802]
[1751461470072,0.2193211,2449.9,2449.6,4.08213572]
[1751461470256,0.2193211,2449.9,2449.8,4.08196587]
[1751461470658,0.2193211,2449.9,2449.7,4.08207832]
[1751461470863,0.2193211,2449.9,2449.8,4.08196587]
[1751461472156,11.62760866,2450.9,2450.4,4.08084938]
[1751461472157,1.62760866,2450.9,2450.4,4.08084938]
[1751461472359,0.7658,2451.0,2450.4,4.08086438]
[1751461472555,0.7658,2451.0,2450.4,6.806]
[1751461472756,0.7658,2450.9,2449.8,4.08180327]
[1751461472960,1.84238,2450.8,2449.8,16.809]
[1751461473155,1.84238,2450.8,2449.9,4.08179925]
[1751461473372,1.84238,2450.8,2450.1,4.08133932]
[1751461473577,0.7658,2450.8,2449.6,0.8005]
[1751461473876,0.7658,2450.8,2450.0,14.08161648]
[1751461474066,0.7658,2450.8,2450.1,10.89045919]
[1751461474262,0.7658,2450.8,2449.6,0.8005]
[1751461474869,0.7937,2450.6,2449.6,0.8005]
[1751461475185,0.7937,2450.6,2449.8,10.0]
[1751461475387,0.7937,2450.6,2449.6,2.095]
[1751461476185,11.62760866,2450.8,2449.6,2.095]
[1751461476186,0.55,2450.5,2449.6,2.095]
[1751461476363,0.8104,2450.4,2449.5,10.0]
[1751461476566,0.55,2450.2,2449.0,0.8145]
[1751461476763,0.55,2450.2,2448.8,0.30936687]
[1751461476764,0.7645,2449.9,2449.1,4.0830454]
[1751461476983,0.7645,2449.9,2449.0,4.0832042]
[1751461477356,0.7645,2449.9,2448.8,4.08349346]
[1751461477573,0.7645,2449.9,2449.0,10.0]
[1751461477772,0.7645,2449.9,2448.7,0.8145]
[1751461477773,0.7645,2449.9,2448.7,14.8982087]
[1751461477978,0.7645,2449.9,2448.9,10.0]
[1751461478174,0.7645,2449.9,2448.9,14.08339371]
[1751461478788,0.7645,2449.9,2449.0,4.08327488]
[1751461478963,0.204,2449.6,2449.2,0.204]
[1751461480588,0.9685,2449.9,2449.4,0.204]
[1751461481486,1.37209732,2449.9,2449.4,0.204]
[1751461481685,0.7645,2449.9,2449.3,4.08273512]
[1751461481897,0.7645,2449.9,2449.2,10.0]
[1751461482206,0.7645,2449.9,2449.7,0.204]
[1751461482499,0.9559,2450.2,2449.7,0.204]
[1751461483066,0.9559,2450.2,2449.0,0.821]
[1751461483271,0.204,2449.9,2449.4,0.204]
[1751461483473,0.204,2449.9,2448.7,2.916]
[1751461483474,0.7652,2449.8,2448.7,2.916]
[1751461483696,0.7941,2449.4,2449.1,0.204]
[1751461487598,0.9981,2449.4,2448.9,0.204]
[1751461490085,0.9981,2449.4,2448.9,0.224]
[1751461490280,0.7941,2449.4,2448.9,0.02]
[1751461490484,0.9891,2449.7,2449.3,4.28669321]
[1751461490680,0.7851,2449.7,2449.4,0.204]
[1751461493618,0.7851,2449.7,2448.9,14.1033941]
[1751461493814,0.9891,2449.7,2449.2,0.204]
[1751461494025,0.9891,2449.7,2449.3,4.08279439]
[1751461494209,0.9891,2449.7,2449.2,4.28683478]
[1751461494514,0.9891,2449.7,2449.2,0.204]
[1751461495402,0.9891,2449.7,2449.2,4.28694727]
[1751461495990,0.01,2449.9,2449.4,4.08251629]
[1751461496191,0.01,2449.9,2449.6,0.204]
[1751461496389,0.01,2449.9,2449.7,4.08204258]
[1751461496593,0.01,2449.9,2449.8,4.28596587]
[1751461497904,0.01,2449.9,2449.8,4.88986587]
[1751461498317,0.01,2449.9,2449.6,4.08221896]
[1751461498499,0.01,2449.9,2449.7,4.08212184]
[1751461498704,0.01,2449.9,2449.6,14.0822038]
[1751461499119,0.01,2449.9,2449.7,4.08212314]
[1751461499509,0.01,2449.9,2449.8,4.08196587]
[1751461502317,0.01,2449.9,2449.8,14.89496587]
[1751461505347,0.01,2449.9,2449.8,15.44496587]
[1751461505707,0.8317,2451.0,2450.5,4.0807887]
[1751461505905,0.8317,2451.0,2450.2,6.787]
[1751461505906,0.39201205,2450.9,2450.2,6.787]
[1751461506127,0.8317,2451.0,2450.5,4.08070369]
[1751461506507,0.8317,2451.0,2450.2,6.789]
[1751461506712,0.8317,2451.0,2450.3,4.08105457]
[1751461507151,0.8317,2451.0,2450.4,4.0809497]
[1751461507335,0.8317,2451.0,2450.5,4.08078563]
[1751461507541,0.8317,2451.0,2450.6,4.08063288]
[1751461507902,0.8317,2451.0,2450.8,0.204]
[1751461508613,0.97342051,2451.2,2450.8,0.204]
[1751461508804,0.7961,2451.4,2450.7,0.7611]
[1751461509003,0.7961,2451.4,2450.8,0.75711]
[1751461509215,0.7961,2451.4,2450.8,4.08021847]
[1751461509437,0.7961,2451.4,2450.9,4.08003225]
[1751461509733,0.7961,2451.4,2450.9,4.08005374]
[1751461510034,0.7961,2451.4,2450.8,4.08027592]
[1751461510540,0.7961,2451.4,2450.7,4.08039278]
[1751461510921,0.7961,2451.4,2450.8,4.08028859]
[1751461511420,0.7961,2451.4,2450.8,1.81608953]
[1751461513238,0.7961,2451.4,2450.8,5.89635739]
[1751461513544,0.7961,2451.4,2450.9,4.08012533]
[1751461514242,0.7961,2451.4,2450.8,1.81608953]
[1751461514416,0.7961,2451.4,2451.2,4.07963151]
[1751461514816,0.7961,2451.4,2451.1,4.07970423]
[1751461515011,0.7961,2451.4,2451.2,4.0796054]
[1751461515212,0.8298,2451.8,2451.1,0.81596265]
[1751461515415,0.8298,2451.8,2451.2,4.07949248]
[1751461515710,0.8298,2451.8,2451.4,4.07921578]
[1751461515917,0.8298,2451.8,2451.4,4.07922351]
[1751461516428,0.8298,2451.8,2451.4,4.07914477]
[1751461516629,0.8298,2451.8,2451.5,4.07910794]
[1751461516835,0.8298,2451.8,2451.4,4.97224706]
[1751461517043,0.8298,2451.8,2451.3,4.07944833]
[1751461517741,0.8298,2451.8,2451.4,4.07929735]
[1751461518248,22.3944156,2452.3,2451.7,4.07869638]
[1751461518249,0.8279,2452.0,2451.7,4.07869638]
[1751461518545,0.8279,2452.0,2451.6,4.07889936]
[1751461518751,0.8279,2452.0,2451.8,0.2032]
[1751461519268,0.9920211,2452.3,2451.5,4.07913522]
[1751461519412,0.9920211,2452.3,2451.9,4.07845636]
[1751461519616,0.9920211,2452.3,2452.2,0.2032]
[1751461519914,0.2193211,2452.3,2452.2,0.2032]
[1751461520441,0.2193211,2452.3,2452.2,4.2811708]
[1751461520613,0.2193211,2452.3,2452.2,1.03912985]
[1751461521226,0.2193211,2452.3,2452.2,0.2032]
[1751461522427,1.0360211,2452.3,2451.6,14.900063]
[1751461522622,1.0360211,2452.3,2452.0,0.2032]
[1751461522822,1.0360211,2452.3,2451.5,2.114]
[1751461523047,1.0360211,2452.3,2451.6,10.0]
[1751461523356,0.2193211,2452.3,2452.1,4.07806394]
[1751461523539,0.2193211,2452.3,2452.1,4.07810676]
[1751461523718,0.2193211,2452.3,2452.2,4.0779708]
[1751461523916,0.2193211,2452.3,2451.8,0.7943]
[1751461524119,0.2193211,2452.3,2452.1,10.0]
[1751461524541,0.2193211,2452.3,2452.0,10.0]
[1751461524953,0.2193211,2452.3,2451.7,11.6193042]
[1751461525329,0.2193211,2452.3,2451.7,1.6193042]
[1751461526147,0.2193211,2452.3,2451.7,11.6193042]
[1751461527343,0.2193211,2452.3,2451.8,1.78122553]
[1751461528356,0.2193211,2452.3,2451.7,1.6193042]
[1751461528542,0.2193211,2452.3,2451.8,4.8459834]
[1751461528853,0.2193211,2452.3,2451.8,12.9075]
[1751461529019,0.2193211,2452.3,2451.8,0.7675]
[1751461529347,0.2193211,2452.3,2451.9,4.07837631]
[1751461529551,0.2193211,2452.3,2452.0,0.48458763]
[1751461530523,0.7533,2452.2,2451.5,0.7675]
[1751461530855,12.1750945,2452.1,2451.3,2.14]
[1751461531058,0.7596,2452.0,2451.3,2.354]
[1751461531264,0.8254,2451.7,2450.8,1.81608953]
[1751461531553,0.8254,2451.7,2450.8,4.08020565]
[1751461531770,0.8254,2451.7,2450.7,16.22035228]
[1751461531924,0.8254,2451.7,2450.7,2.14]
[1751461532124,0.8254,2451.7,2450.7,4.08046138]
[1751461532325,0.8254,2451.7,2450.7,6.22046138]
[1751461532874,0.7641,2451.4,2451.0,0.2032]
[1751461534963,0.7576,2451.1,2450.4,2.14]
[1751461535164,0.204,2451.0,2450.6,0.204]
[1751461535534,1.51766945,2451.0,2450.6,0.204]
[1751461535734,0.8195,2450.9,2450.6,0.204]
[1751461537434,0.8195,2450.9,2450.0,4.28561882]
[1751461537435,0.7947,2450.5,2450.0,4.28561882]
[1751461537631,0.9987,2450.5,2450.0,0.204]
[1751461539355,0.797,2450.4,2450.0,0.204]
[1751461547205,12.9476945,2450.3,2449.4,2.141]
[1751461547344,2.42832643,2450.2,2449.7,0.204]
[1751461553295,0.7726,2450.2,2449.6,0.8168]
[1751461553495,0.7778,2450.4,2450.1,4.08145927]
[1751461553795,0.7778,2450.6,2450.3,4.28505654]
[1751461553998,0.7778,2450.6,2450.3,5.20335873]
[1751461554159,0.7778,2450.6,2450.3,1.12230219]
[1751461555276,0.7778,2450.6,2450.3,0.204]
[1751461557410,0.9818,2450.6,2450.1,0.204]
[1751461560300,0.7778,2450.6,2449.7,0.8168]
[1751461560500,0.9755,2450.8,2450.4,0.204]
[1751461563275,0.7715,2450.7,2450.4,0.204]
[1751461563507,0.7715,2450.7,2449.8,4.89467258]
[1751461563710,0.8156,2450.5,2450.1,0.204]
[1751461564018,0.204,2450.3,2449.9,0.204]
[1751461564846,0.8156,2450.2,2449.9,0.204]
[1751461567257,1.0267,2449.9,2449.5,0.204]
[1751461567412,2.00240017,2449.9,2449.5,0.204]
[1751461568332,2.00240017,2449.9,2449.3,0.02]
[1751461568522,0.8227,2449.9,2449.8,0.204]
[1751461569535,0.8227,2449.9,2449.5,0.204]
[1751461569731,1.79840017,2449.9,2449.5,0.204]
[1751461570535,0.97570017,2449.9,2449.5,0.7988]
[1751461570846,7.6175,2450.1,2449.8,0.204]
[1751461572255,8.59320017,2450.1,2449.8,0.204]
[1751461572429,7.6175,2450.1,2449.8,0.204]
[1751461572634,8.59320017,2450.1,2449.8,0.204]
[1751461572835,0.8285,2450.1,2449.8,0.204]
[1751461573039,1.80420017,2450.1,2449.8,1.87376498]
[1751461573227,0.8285,2450.1,2449.8,1.87376498]
[1751461573429,0.97570017,2450.1,2449.8,1.87376498]
[1751461573628,0.9778965,2450.2,2449.8,1.87376498]
[1751461573857,0.9778965,2450.1,2449.8,1.87376498]
[1751461574047,0.9778965,2450.2,2449.8,1.87376498]
[1751461574248,0.9778965,2450.1,2449.8,1.87376498]
[1751461574557,0.9778965,2450.2,2449.8,1.87376498]
[1751461574726,0.9778965,2450.1,2449.8,0.204]
[1751461575031,0.9778965,2450.2,2449.8,4.08195164]
[1751461575232,0.9778965,2450.3,2450.0,0.204]
[1751461575553,0.9778965,2450.2,2450.0,0.204]
[1751461575749,0.9778965,2450.3,2450.0,4.28556099]
[1751461575929,0.9546,2450.4,2450.0,5.12229281]
[1751461576133,1.9324965,2450.4,2450.0,5.12229281]
[1751461576332,0.9546,2450.4,2450.0,1.04073182]
[1751461576562,1.9324965,2450.4,2450.0,1.04073182]
[1751461576734,0.9546,2450.4,2450.0,5.12235204]
[1751461576935,1.9324965,2450.4,2450.0,5.12235204]
[1751461577268,0.9546,2450.4,2450.0,5.12235204]
[1751461577562,1.9324965,2450.4,2450.0,5.12235204]
[1751461577858,0.9546,2450.4,2450.0,5.12235204]
[1751461578058,1.9324965,2450.4,2450.0,5.12235204]
[1751461578264,0.9546,2450.4,2450.0,5.12235204]
[1751461578561,1.1818965,2450.4,2450.1,4.08142051]
[1751461578765,0.9778965,2450.5,2450.2,0.204]
[1751461578951,0.9778965,2450.4,2450.2,0.204]
[1751461579129,0.9778965,2450.5,2450.2,0.204]
[1751461579333,0.9778965,2450.4,2450.2,0.204]
[1751461579556,0.9778965,2450.5,2450.2,0.204]
[1751461579859,0.9778965,2450.4,2450.2,0.204]
[1751461584270,0.9778965,2450.4,2449.7,0.7956]
[1751461584467,1.1818965,2450.4,2450.0,0.204]
[1751461584975,0.9778965,2450.4,2450.1,0.9826]
[1751461585264,0.9778965,2450.5,2450.1,0.9826]
[1751461585840,0.9778965,2450.5,2450.1,0.204]
[1751461587336,0.9878965,2450.5,2450.1,0.204]
[1751461588371,0.9778965,2450.4,2450.1,0.204]
[1751461590974,0.204,2450.1,2449.6,0.204]
[1751461591971,0.9778965,2450.0,2449.6,0.204]
[1751461593479,0.9778965,2449.9,2449.6,0.204]
[1751461593784,0.9778965,2450.0,2449.6,0.204]
[1751461593979,0.9778965,2449.9,2449.6,0.204]
[1751461594147,0.9778965,2450.0,2449.6,0.204]
[1751461594351,0.9778965,2449.9,2449.6,0.204]
[1751461594651,0.9778965,2450.0,2449.6,0.204]
[1751461594869,0.9778965,2449.9,2449.6,0.204]
[1751461595071,0.9778965,2450.0,2449.6,0.204]
[1751461595270,0.9778965,2449.9,2449.6,0.204]
[1751461595577,0.9778965,2450.0,2449.6,0.204]
[1751461595773,0.9778965,2449.9,2449.6,0.204]
[1751461596073,0.9778965,2450.0,2449.6,0.204]
[1751461596278,0.9778965,2449.9,2449.6,0.204]
[1751461596481,0.9778965,2450.0,2449.6,0.204]
[1751461596679,0.9778965,2449.9,2449.6,0.204]
[1751461596880,0.9778965,2450.0,2449.6,0.204]
[1751461597083,0.9778965,2449.9,2449.6,0.204]
[1751461597250,0.9778965,2450.0,2449.6,0.204]
[1751461597450,0.9778965,2449.9,2449.6,0.204]
[1751461597683,0.9778965,2450.0,2449.6,0.204]
[1751461597879,0.9778965,2449.9,2449.6,0.204]
[1751461598179,0.9778965,2450.0,2449.6,0.204]
[1751461598349,0.9778965,2449.9,2449.6,0.204]
[1751461598552,0.9778965,2450.0,2449.6,0.204]
[1751461598752,0.9778965,2449.9,2449.6,0.204]
[1751461598954,0.9778965,2450.0,2449.6,0.204]
[1751461599181,0.9778965,2449.9,2449.6,0.204]
[1751461599383,0.9778965,2450.0,2449.6,0.204]
[1751461599582,0.9778965,2449.9,2449.6,0.204]
[1751461599801,0.9778965,2450.0,2449.6,0.204]
[1751461600080,0.9778965,2449.9,2449.6,0.204]
[1751461600277,0.9778965,2450.0,2449.6,0.204]